fUSD/lending_fUSD_20240419
["ID","MTS","AMOUNT","RATE_DAILY","PERIOD"]
[322907656,1713492653173,-500.0,0.00016438,2]
[322907657,1713492653183,-2968.65,0.00016438,2]
[322907658,1713492653193,-500.0,0.00016438,2]
[322907659,1713492653203,-5221.27,0.00016438,2]
[322907660,1713492653213,-563.61,0.00016438,2]
[322907661,1713492653222,-715.23,0.00016438,2]
[322907662,1713492653232,-1244.78,0.00016438,2]
[322907663,1713492653242,-5576.97586072,0.00016438,2]
[322907664,1713492654236,-8943.32413928,0.00016438,2]
[322907665,1713492654246,-500.0,0.00016438,2]
[322907666,1713492654257,-2419.51,0.00016438,2]
[322907667,1713492654268,-500.0,0.00016438,2]
[322907668,1713492654278,-3208.67,0.00016438,2]
[322907669,1713492654288,-644.33,0.00016438,2]
[322907670,1713492654298,-2220.94,0.00016438,2]
[322907671,1713492654308,-500.0,0.00016438,2]
[322907672,1713492654318,-819.2,0.00016438,2]
[322907673,1713492654328,-2256.96,0.00016438,2]
[322907674,1713492654339,-500.0,0.00016438,2]
[322907675,1713492654349,-500.0,0.00016438,2]
[322907676,1713492654359,-789.63,0.00016438,2]
[322907677,1713492654369,-2042.65,0.00016438,2]
[322907678,1713492654378,-1234.7,0.00016438,2]
[322907679,1713492654388,-33194.89,0.00016438,2]
[322907680,1713492654402,-1809.22,0.00016438,2]
[322907681,1713492654412,-500.0,0.00016438,2]
[322907682,1713492654421,-2491.09,0.00016438,2]
[322907683,1713492654431,-500.0,0.00016438,2]
[322907684,1713492654441,-7668.97,0.00016438,2]
[322907685,1713492654451,-2721.32,0.00016438,2]
[322907686,1713492654461,-500.0,0.00016438,2]
[322907687,1713492654470,-500.0,0.00016438,2]
[322907688,1713492654479,-1004.83,0.00016438,2]
[322907689,1713492654488,-500.0,0.00016438,2]
[322907690,1713492654498,-2461.87,0.00016438,2]
[322907691,1713492654508,-7524.72,0.00016438,2]
[322907692,1713492654518,-2711.01,0.00016438,2]
[322907693,1713492654527,-500.0,0.00016438,2]
[322907694,1713492654537,-500.0,0.00016438,2]
[322907695,1713492654547,-2185.42,0.00016438,2]
[322907696,1713492654556,-2916.46,0.00016438,2]
[322907697,1713492654566,-500.0,0.00016438,2]
[322907698,1713492654575,-500.0,0.00016438,2]
[322907699,1713492654585,-500.0,0.00016438,2]
[322907700,1713492654596,-500.0,0.00016438,2]
[322907701,1713492654606,-500.0,0.00016438,2]
[322907702,1713492654616,-500.0,0.00016438,2]
[322907703,1713492654626,-1400.17,0.00016438,2]
[322907704,1713492654636,-1989.64,0.00016438,2]
[322907705,1713492654651,-500.0,0.00016438,2]
[322907706,1713492654661,-500.0,0.00016438,2]
[322907707,1713492654671,-655.85,0.00016438,2]
[322907708,1713492654680,-594.21440294,0.00016438,2]
[322907709,1713492654690,-500.0,0.00016438,2]
[322907710,1713492654700,-500.0,0.00016438,2]
[322907711,1713492654709,-1425.17,0.00016438,2]
[322907712,1713492654719,-3900.78,0.00016438,2]
[322907713,1713492654729,-500.0,0.00016438,2]
[322907714,1713492654739,-1233.67,0.00016438,2]
[322907715,1713492654748,-500.0,0.00016438,2]
[322907716,1713492654758,-500.0,0.00016438,2]
[322907717,1713492654767,-1012.49,0.00016438,2]
[322907718,1713492654777,-1771.64,0.00016438,2]
[322907719,1713492654786,-563.54,0.00016438,2]
[322907720,1713492654796,-500.0,0.00016438,2]
[322907721,1713492654806,-500.0,0.00016438,2]
[322907722,1713492654815,-9105.18,0.00016438,2]
[322907723,1713492654824,-2019.76,0.00016438,2]
[322907724,1713492654834,-1136.28,0.00016438,2]
[322907725,1713492654843,-1659.79,0.00016438,2]
[322907726,1713492654853,-4699.8,0.00016438,2]
[322907727,1713492654863,-1867.45,0.00016438,2]
[322907728,1713492654872,-670.49,0.00016438,2]
[322907729,1713492654882,-503.15064577,0.00016438,2]
[322907730,1713492654896,-6551.52,0.00016438,2]
[322907731,1713492654905,-500.0,0.00016438,2]
[322907732,1713492654914,-500.0,0.00016438,2]
[322907733,1713492654923,-16873.26,0.00016438,2]
[322907734,1713492654932,-3539.42,0.00016438,2]
[322907735,1713492654941,-13035.55,0.00016438,2]
[322907736,1713492654951,-1549.35,0.00016438,2]
[322907737,1713492654960,-886.5,0.00016438,2]
[322907738,1713492654969,-1957.18,0.00016438,2]
[322907739,1713492654979,-500.0,0.00016438,2]
[322907740,1713492654988,-500.0,0.00016438,2]
[322907741,1713492654998,-3045.91,0.00016438,2]
[322907742,1713492655008,-647.91,0.00016438,2]
[322907743,1713492655017,-663.16,0.00016438,2]
[322907744,1713492655027,-500.0,0.00016438,2]
[322907745,1713492655037,-1062.96,0.00016438,2]
[322907746,1713492655046,-1877.66,0.00016438,2]
[322907747,1713492655182,-1516.26,0.00016438,2]
[322907748,1713492655192,-1338.81,0.00016438,2]
[322907749,1713492655201,-1205.85,0.00016438,2]
[322907750,1713492655211,-500.0,0.00016438,2]
[322907751,1713492655220,-500.0,0.00016438,2]
[322907752,1713492655230,-500.0,0.00016438,2]
[322907753,1713492655240,-500.0,0.00016438,2]
[322907754,1713492655250,-7309.61,0.00016438,2]
[322907755,1713492655262,-6209.35,0.00016438,2]
[322907756,1713492655271,-10061.48,0.00016438,2]
[322907757,1713492655281,-223.37486752,0.00016438,2]
[322907758,1713492655291,-16299.18,0.00016438,2]
[322907759,1713492655301,-500.0,0.00016438,2]
[322907760,1713492655310,-500.0,0.00016438,2]
[322907761,1713492655319,-2100.88,0.00016438,2]
[322907762,1713492655329,-500.0,0.00016438,2]
[322907763,1713492655339,-526.44,0.00016438,2]
[322907764,1713492655348,-500.0,0.00016438,2]
[322907765,1713492655358,-475.17398035,0.00016438,2]
[322907766,1713492655367,-500.0,0.00016438,2]
[322907767,1713492655376,-500.0,0.00016438,2]
[322907768,1713492655385,-2021.81,0.00016438,2]
[322907769,1713492655399,-500.0,0.00016438,2]
[322907770,1713492655408,-516.81229608,0.00016438,2]
[322907771,1713492655417,-500.0,0.00016438,2]
[322907772,1713492655427,-3112.69,0.00016438,2]
[322907773,1713492655436,-500.0,0.00016438,2]
[322907774,1713492655445,-578.12,0.00016438,2]
[322907775,1713492655455,-7060.09,0.00016438,2]
[322907776,1713492655464,-739.34,0.00016438,2]
[322907777,1713492655475,-6492.12,0.00016438,2]
[322907778,1713492655485,-18456.06,0.00016438,2]
[322907779,1713492655494,-1100.85,0.00016438,2]
[322907780,1713492655503,-1528.28,0.00016438,2]
[322907781,1713492655512,-1171.14,0.00016438,2]
[322907782,1713492655521,-3387.34,0.00016438,2]
[322907783,1713492655531,-181.66640997,0.00016438,2]
[322907784,1713492655540,-500.0,0.00016438,2]
[322907785,1713492655549,-609.79,0.00016438,2]
[322907786,1713492655558,-222.56518694,0.00016438,2]
[322907787,1713492655567,-649.43,0.00016438,2]
[322907788,1713492655577,-5278.96,0.00016438,2]
[322907789,1713492655586,-500.0,0.00016438,2]
[322907790,1713492655595,-556.44,0.00016438,2]
[322907791,1713492655604,-9876.31,0.00016438,2]
[322907792,1713492655613,-7226.06,0.00016438,2]
[322907793,1713492655622,-500.0,0.00016438,2]
[322907794,1713492655631,-14554.49,0.00016438,2]
[322907795,1713492655644,-1300.03,0.00016438,2]
[322907796,1713492655654,-673.67,0.00016438,2]
[322907797,1713492655663,-670.12,0.00016438,2]
[322907798,1713492655672,-500.0,0.00016438,2]
[322907799,1713492655681,-9849.04,0.00016438,2]
[322907800,1713492655691,-3621.31,0.00016438,2]
[322907801,1713492655700,-500.0,0.00016438,2]
[322907802,1713492655709,-500.0,0.00016438,2]
[322907803,1713492655718,-500.0,0.00016438,2]
[322907804,1713492655727,-5218.16,0.00016438,2]
[322907805,1713492655736,-1578.58,0.00016438,2]
[322907806,1713492655745,-1657.86,0.00016438,2]
[322907807,1713492655755,-500.0,0.00016438,2]
[322907808,1713492655765,-568.97,0.00016438,2]
[322907809,1713492655774,-1067.25,0.00016438,2]
[322907810,1713492655783,-1658.86,0.00016438,2]
[322907811,1713492655792,-500.0,0.00016438,2]
[322907812,1713492655803,-1658.86,0.00016438,2]
[322907813,1713492655812,-1658.86,0.00016438,2]
[322907814,1713492655821,-1658.86,0.00016438,2]
[322907815,1713492655831,-1658.86,0.00016438,2]
[322907816,1713492655841,-500.0,0.00016438,2]
[322907817,1713492655850,-500.0,0.00016438,2]
[322907818,1713492655859,-1658.86,0.00016438,2]
[322907819,1713492655869,-1043.42,0.00016438,2]
[322907820,1713492655878,-500.0,0.00016438,2]
[322907821,1713492655887,-500.0,0.00016438,2]
[322907822,1713492655900,-1658.86,0.00016438,2]
[322907823,1713492655909,-10416.94,0.00016438,2]
[322907824,1713492655919,-1658.86,0.00016438,2]
[322907825,1713492655928,-1242.18,0.00016438,2]
[322907826,1713492655937,-1658.86,0.00016438,2]
[322907827,1713492655946,-5981.97,0.00016438,2]
[322907828,1713492655956,-1658.86,0.00016438,2]
[322907829,1713492655966,-1658.86,0.00016438,2]
[322907830,1713492655974,-1658.86,0.00016438,2]
[322907831,1713492655983,-1280.43,0.00016438,2]
[322907832,1713492655992,-1658.86,0.00016438,2]
[322907833,1713492656002,-12303.4,0.00016438,2]
[322907834,1713492656011,-500.0,0.00016438,2]
[322907835,1713492656020,-2681.86697894,0.00016438,2]
[322907836,1713492656115,-630.41393,0.00016438,2]
[322907837,1713492656865,-2948.13647909,0.00016438,2]
[322907838,1713492656881,-1525.07252,0.00016438,2]
[322907841,1713492659487,-5309.04684333,0.00016,2]
[322907842,1713492659519,-610.61,0.00016,2]
[322907843,1713492659534,-6683.20685639,0.00016,2]
[322907844,1713492659544,-4500.18,0.000162,2]
[322907845,1713492659553,-1070.53471359,0.00016438,2]
[322907846,1713492659641,-10689.52209636,0.00016438,2]
[322907847,1713492659674,-269.33328202,0.00016438,2]
[322907848,1713492659683,-500.0,0.00016438,2]
[322907849,1713492659692,-1392.21,0.00016438,2]
[322907850,1713492659701,-520.71,0.00016438,2]
[322907851,1713492659710,-4331.22,0.00016438,2]
[322907852,1713492659720,-2747.29,0.00016438,2]
[322907853,1713492659729,-3727.94,0.00016438,2]
[322907854,1713492659738,-2943.78,0.00016438,2]
[322907855,1713492659747,-1242.06,0.00016438,2]
[322907856,1713492659757,-500.0,0.00016438,2]
[322907857,1713492659765,-3727.94,0.00016438,2]
[322907858,1713492659774,-3727.94,0.00016438,2]
[322907859,1713492659783,-3727.94,0.00016438,2]
[322907860,1713492659792,-10009.95,0.00016438,2]
[322907861,1713492659802,-3727.94,0.00016438,2]
[322907862,1713492659813,-500.0,0.00016438,2]
[322907863,1713492659822,-3727.94,0.00016438,2]
[322907864,1713492659833,-3727.94,0.00016438,2]
[322907865,1713492659842,-8027.48,0.00016438,2]
[322907866,1713492659851,-500.0,0.00016438,2]
[322907867,1713492659861,-500.0,0.00016438,2]
[322907868,1713492659870,-3727.94,0.00016438,2]
[322907869,1713492659880,-500.0,0.00016438,2]
[322907870,1713492659888,-3727.94,0.00016438,2]
[322907871,1713492659899,-1554.5,0.00016438,2]
[322907872,1713492659908,-3727.94,0.00016438,2]
[322907873,1713492659917,-3727.94,0.00016438,2]
[322907874,1713492659926,-3727.94,0.00016438,2]
[322907875,1713492659935,-3727.94,0.00016438,2]
[322907876,1713492659944,-3727.94,0.00016438,2]
[322907877,1713492659954,-3727.94,0.00016438,2]
[322907878,1713492659963,-500.0,0.00016438,2]
[322907879,1713492659972,-500.0,0.00016438,2]
[322907880,1713492659981,-3727.94,0.00016438,2]
[322907881,1713492659990,-5495.83,0.00016438,2]
[322907882,1713492660000,-3727.94,0.00016438,2]
[322907883,1713492660009,-3727.94,0.00016438,2]
[322907884,1713492660018,-3727.94,0.00016438,2]
[322907885,1713492660027,-500.0,0.00016438,2]
[322907886,1713492660036,-500.0,0.00016438,2]
[322907887,1713492660046,-1051.9,0.00016438,2]
[322907888,1713492660056,-21843.26,0.00016438,2]
[322907889,1713492660066,-10974.71,0.00016438,2]
[322907890,1713492660075,-4175.53,0.00016438,2]
[322907891,1713492660085,-4870.6,0.00016438,2]
[322907892,1713492660094,-500.0,0.00016438,2]
[322907893,1713492660103,-1701.73,0.00016438,2]
[322907894,1713492660113,-675.64,0.00016438,2]
[322907895,1713492660122,-2098.18,0.00016438,2]
[322907896,1713492660132,-500.0,0.00016438,2]
[322907897,1713492660141,-500.0,0.00016438,2]
[322907898,1713492660156,-151.0,0.00016438,2]
[322907899,1713492660166,-151.0,0.00016438,2]
[322907900,1713492660176,-151.0,0.00016438,2]
[322907901,1713492660185,-500.0,0.00016438,2]
[322907902,1713492660194,-151.0,0.00016438,2]
[322907903,1713492660204,-151.0,0.00016438,2]
[322907904,1713492660213,-500.0,0.00016438,2]
[322907905,1713492660222,-151.0,0.00016438,2]
[322907906,1713492660231,-567.73,0.00016438,2]
[322907907,1713492660240,-151.0,0.00016438,2]
[322907908,1713492660250,-500.0,0.00016438,2]
[322907909,1713492660262,-500.0,0.00016438,2]
[322907910,1713492660271,-500.0,0.00016438,2]
[322907911,1713492660281,-559.92,0.00016438,2]
[322907912,1713492660290,-500.0,0.00016438,2]
[322907913,1713492660301,-500.0,0.00016438,2]
[322907914,1713492660310,-500.0,0.00016438,2]
[322907915,1713492660319,-1051.49,0.00016438,2]
[322907916,1713492660328,-13948.92,0.00016438,2]
[322907917,1713492660338,-500.0,0.00016438,2]
[322907918,1713492660347,-153.69042321,0.00016438,2]
[322907919,1713492660356,-500.0,0.00016438,2]
[322907920,1713492660365,-653.25,0.00016438,2]
[322907921,1713492660374,-519.14,0.00016438,2]
[322907922,1713492660384,-7391.22,0.00016438,2]
[322907923,1713492660397,-13742.41,0.00016438,2]
[322907924,1713492660406,-524.21060939,0.00016438,2]
[322907925,1713492660415,-500.0,0.00016438,2]
[322907926,1713492660425,-4811.74,0.00016438,2]
[322907927,1713492660434,-530.31463357,0.00016438,2]
[322907928,1713492660443,-588.43,0.00016438,2]
[322907929,1713492660453,-14337.1696488,0.00016438,2]
[322907930,1713492660508,-1339.0,0.00016438,2]
[322907931,1713492660518,-1591.74272003,0.00016438,2]
[322907932,1713492661507,-404.0,0.00016438,2]
[322907933,1713492661519,-432.00003,0.00016438,2]
[322907934,1713492661631,-344.34999999,0.00016438,2]
[322907935,1713492661643,-12203.9,0.00016438,2]
[322907936,1713492661656,-2119.34606194,0.00016438,2]
[322907937,1713492661667,-5365.51923283,0.00016438,2]
[322907938,1713492661683,-324.92839964,0.00016438,2]
[322907939,1713492661704,-33216.68074218,0.00016438,2]
[322907940,1713492661816,-3869.32699117,0.00016438,2]
[322907941,1713492680637,757.75364269,0.00014792,2]
[322907942,1713492700321,152.13,0.0001611,15]
[322907943,1713492956307,409.92,0.00015365,2]
[322907944,1713492960425,176.92,0.00015365,2]
[322907945,1713492979324,203.9,0.00015355,2]
[322907946,1713493139385,1335.95,0.00015318,2]
[322907947,1713493196646,646.79,0.00015275,2]
[322907948,1713493228602,152.13,0.0001611,15]
[322907949,1713493231506,1790.0,0.00028208,120]
[322907950,1713493306405,184.68045306,0.00024333,30]
[322907951,1713493308079,601.15,0.00013376,2]
[322907952,1713493328912,250.0,0.0001528,2]
[322907953,1713493456888,177.26,0.00015271,2]
[322907954,1713493458503,164.02,0.00015271,2]
[322907955,1713493534103,672.06,0.00015271,2]
[322907956,1713493682685,247.48,0.00015323,2]
[322907957,1713493752246,152.13,0.0001611,15]
[322907958,1713493816498,250.0,0.00015323,2]
[322908011,1713493831642,-274.85691421,0.00015517,2]
[322908016,1713493831655,-720.26587227,0.00015517,2]
[322908030,1713493831722,-597.5,0.00015517,2]
[322908036,1713493831785,-273.37715527,0.00015517,2]
[322908038,1713493831801,-348.46529123,0.00015517,2]
[322908040,1713493831812,-1641.17225677,0.00015518,2]
[322908044,1713493831836,-3761.93766919,0.00015518,2]
[322908046,1713493831846,-456.77579079,0.0001564,2]
[322908050,1713493831881,-144.37420921,0.0001564,2]
[322908052,1713493831891,-2282.22881794,0.00015999,4]
[322908055,1713493831902,-507.48504687,0.00015999,4]
[322908057,1713493831913,-2109.589995,0.00015999,4]
[322908060,1713493831934,-1974.8225,0.00015999,4]
[322908086,1713493833213,-8860.24573339,0.00015999,4]
[322908133,1713493838004,-5538.83056235,0.00015999,4]
[322908134,1713493838017,-1217.72175074,0.00015999,4]
[322908136,1713493838028,-871.08909647,0.00015999,4]
[322908138,1713493838040,-38809.08989669,0.00015999,4]
[322908140,1713493838049,-12602.86369972,0.00016,2]
[322908142,1713493838063,-150.0,0.00016107,2]
[322908144,1713493838073,-499.99,0.0001611,2]
[322908146,1713493838082,-511.61,0.0001611,3]
[322908148,1713493838091,-255.8,0.0001611,3]
[322908150,1713493838100,-767.45,0.0001611,3]
[322908152,1713493838110,-128819.1455,0.0001612,2]
[322908154,1713493838119,-181.4899518,0.0001612,2]
[322908156,1713493838129,-1327.0025,0.0001612,2]
[322908158,1713493838138,-16808.1065,0.0001613,2]
[322908160,1713493838147,-2531.52,0.0001613,2]
[322908162,1713493838156,-8000.0,0.000162,2]
[322908164,1713493838165,-7999.99,0.000162,2]
[322908166,1713493838174,-8000.0,0.000162,2]
[322908168,1713493838183,-3662.206,0.000162,2]
[322908170,1713493838192,-4500.17,0.000162,2]
[322908172,1713493838201,-8000.0,0.0001621,2]
[322908174,1713493838210,-8000.0,0.0001621,2]
[322908176,1713493838219,-8000.0,0.0001622,2]
[322908178,1713493838228,-8000.0,0.0001622,2]
[322908180,1713493838238,-8000.0,0.0001623,2]
[322908182,1713493838247,-8000.0,0.0001623,2]
[322908184,1713493838258,-445.5275,0.00016237,2]
[322908186,1713493838268,-8000.0,0.0001624,2]
[322908188,1713493838277,-10000.0,0.00016257,2]
[322908190,1713493838287,-499.68472,0.0001627,2]
[322908192,1713493838296,-200.0,0.00016306,2]
[322908194,1713493838308,-1000.0,0.00016306,2]
[322908196,1713493838318,-500.0,0.00016306,2]
[322908198,1713493838328,-200.0,0.00016306,2]
[322908200,1713493838337,-1000.0,0.00016306,2]
[322908202,1713493838346,-200.0,0.00016307,2]
[322908204,1713493838356,-1000.0,0.00016307,2]
[322908206,1713493838365,-1000.0,0.00016307,2]
[322908208,1713493838375,-200.0,0.00016307,2]
[322908210,1713493838384,-500.0,0.00016307,2]
[322908212,1713493838394,-500.0,0.00016307,2]
[322908214,1713493838403,-200.0,0.00016307,2]
[322908216,1713493838412,-4830.9776,0.00016329,2]
[322908218,1713493838421,-178.91371748,0.00016338,2]
[322908220,1713493838431,-158.30456811,0.00016338,2]
[322908222,1713493838440,-154.78511907,0.00016338,2]
[322908224,1713493838449,-198.96697306,0.00016338,2]
[322908226,1713493838461,-1493.07411238,0.00016338,2]
[322908228,1713493838471,-181.27316009,0.00016338,2]
[322908231,1713493838480,-193.09516415,0.00016338,2]
[322908233,1713493838491,-648.78213721,0.00016338,2]
[322908235,1713493838500,-386.22390435,0.00016338,2]
[322908237,1713493838509,-153.40403163,0.00016338,2]
[322908239,1713493838519,-419.77586494,0.00016338,2]
[322908240,1713493838528,-168.7819,0.00016338,2]
[322908243,1713493838538,-1000.0,0.00016338,2]
[322908245,1713493838548,-150.0,0.00016373,2]
[322908247,1713493838562,-1815.0,0.000164,2]
[322908249,1713493838573,-1493.07411237,0.00016407,2]
[322908251,1713493838583,-800.0,0.00016411,2]
[322908253,1713493838593,-800.0,0.00016411,2]
[322908255,1713493838603,-159.21,0.00016428,2]
[322908257,1713493838613,-189.91857939,0.00016428,2]
[322908259,1713493838622,-779.9707197,0.00016429,2]
[322908261,1713493838634,-3432.6227191,0.00016429,2]
[322908263,1713493838644,-4356.0842568,0.00016429,2]
[322908265,1713493838654,-10444.3495275,0.00016429,2]
[322908267,1713493838663,-2365.13008248,0.00016436,2]
[322908269,1713493838674,-1080.31491662,0.00016436,2]
[322908271,1713493838683,-164.59322308,0.00016436,2]
[322908273,1713493838692,-201.52609927,0.00016436,2]
[322908275,1713493838703,-155.68026996,0.00016436,2]
[322908277,1713493838713,-3161.05493086,0.00016436,2]
[322908279,1713493838723,-158.7687991,0.00016437,2]
[322908281,1713493838732,-7228.71600604,0.00016437,2]
[322908283,1713493838741,-155.28981591,0.00016437,2]
[322908285,1713493838752,-280.25692232,0.00016437,2]
[322908287,1713493838762,-360.47843524,0.00016437,2]
[322908289,1713493838771,-2329.3205,0.00016437,2]
[322908290,1713493838780,-1280.0,0.00016438,2]
[322908292,1713493838790,-500.0,0.00016438,2]
[322908294,1713493838799,-500.0,0.00016438,2]
[322908296,1713493838816,-500.0,0.00016438,2]
[322908299,1713493838826,-500.0,0.00016438,2]
[322908301,1713493838835,-500.0,0.00016438,2]
[322908303,1713493838845,-500.0,0.00016438,2]
[322908305,1713493838855,-500.10973867,0.00016438,2]
[322908307,1713493838865,-500.0,0.00016438,2]
[322908309,1713493838874,-500.0,0.00016438,2]
[322908310,1713493838884,-500.0,0.00016438,2]
[322908312,1713493838893,-500.0,0.00016438,2]
[322908314,1713493838902,-500.0,0.00016438,2]
[322908316,1713493838911,-500.0,0.00016438,2]
[322908318,1713493838921,-500.0,0.00016438,2]
[322908320,1713493838931,-500.0,0.00016438,2]
[322908322,1713493838940,-500.18096796,0.00016438,2]
[322908324,1713493838949,-500.0,0.00016438,2]
[322908326,1713493838958,-500.0,0.00016438,2]
[322908328,1713493838968,-500.0,0.00016438,2]
[322908330,1713493838977,-500.0,0.00016438,2]
[322908333,1713493838987,-500.0,0.00016438,2]
[322908335,1713493838997,-500.0,0.00016438,2]
[322908337,1713493839007,-500.0,0.00016438,2]
[322908339,1713493839016,-500.0,0.00016438,2]
[322908341,1713493839025,-500.0,0.00016438,2]
[322908342,1713493839034,-298.88917645,0.00016438,2]
[322908344,1713493839043,-502.73383317,0.00016438,2]
[322908346,1713493839059,-500.0,0.00016438,2]
[322908349,1713493839071,-500.0,0.00016438,2]
[322908350,1713493839081,-500.0,0.00016438,2]
[322908352,1713493839089,-236.69352119,0.00016438,2]
[322908354,1713493839098,-500.0,0.00016438,2]
[322908356,1713493839107,-500.0,0.00016438,2]
[322908358,1713493839117,-276.87156345,0.00016438,2]
[322908361,1713493839127,-500.0,0.00016438,2]
[322908363,1713493839136,-500.0,0.00016438,2]
[322908365,1713493839146,-500.0,0.00016438,2]
[322908367,1713493839155,-500.03559823,0.00016438,2]
[322908369,1713493839164,-500.0,0.00016438,2]
[322908370,1713493839174,-500.12148276,0.00016438,2]
[322908372,1713493839183,-500.0,0.00016438,2]
[322908374,1713493839192,-500.0,0.00016438,2]
[322908376,1713493839201,-500.0,0.00016438,2]
[322908378,1713493839210,-500.0,0.00016438,2]
[322908380,1713493839219,-500.0,0.00016438,2]
[322908383,1713493839229,-501.22064763,0.00016438,2]
[322908385,1713493839239,-500.0,0.00016438,2]
[322908387,1713493839249,-542.9056557,0.00016438,2]
[322908389,1713493839259,-500.0,0.00016438,2]
[322908391,1713493839268,-500.0,0.00016438,2]
[322908393,1713493839279,-500.0,0.00016438,2]
[322908395,1713493839288,-156.4322347,0.00016438,2]
[322908397,1713493839298,-500.0,0.00016438,2]
[322908399,1713493839313,-1824.76,0.00016438,2]
[322908401,1713493839322,-500.0,0.00016438,2]
[322908403,1713493839331,-523.40095989,0.00016438,2]
[322908405,1713493839340,-500.0,0.00016438,2]
[322908407,1713493839349,-500.0,0.00016438,2]
[322908409,1713493839360,-500.0,0.00016438,2]
[322908412,1713493839375,-1884.14,0.00016438,2]
[322908414,1713493839384,-500.0,0.00016438,2]
[322908416,1713493839394,-500.0,0.00016438,2]
[322908418,1713493839403,-500.0,0.00016438,2]
[322908419,1713493839413,-500.0,0.00016438,2]
[322908421,1713493839422,-500.0,0.00016438,2]
[322908423,1713493839432,-827.89,0.00016438,2]
[322908425,1713493839442,-500.0,0.00016438,2]
[322908427,1713493839451,-500.0,0.00016438,2]
[322908429,1713493839461,-954.19,0.00016438,2]
[322908431,1713493839471,-500.0,0.00016438,2]
[322908434,1713493839482,-500.0,0.00016438,2]
[322908437,1713493839492,-500.0,0.00016438,2]
[322908441,1713493839503,-913.57,0.00016438,2]
[322908443,1713493839512,-500.0,0.00016438,2]
[322908446,1713493839522,-500.0,0.00016438,2]
[322908450,1713493839532,-500.0,0.00016438,2]
[322908455,1713493839542,-652.13,0.00016438,2]
[322908459,1713493839551,-500.0,0.00016438,2]
[322908462,1713493839567,-500.0,0.00016438,2]
[322908465,1713493839577,-549.28,0.00016438,2]
[322908468,1713493839586,-826.57,0.00016438,2]
[322908471,1713493839597,-500.0,0.00016438,2]
[322908474,1713493839608,-2472.89,0.00016438,2]
[322908476,1713493839618,-500.0,0.00016438,2]
[322908478,1713493839629,-500.0,0.00016438,2]
[322908480,1713493839639,-500.0,0.00016438,2]
[322908482,1713493839649,-500.0,0.00016438,2]
[322908484,1713493839659,-500.0,0.00016438,2]
[322908486,1713493839670,-500.0,0.00016438,2]
[322908488,1713493839680,-1732.12,0.00016438,2]
[322908490,1713493839690,-500.0,0.00016438,2]
[322908492,1713493839700,-1720.16,0.00016438,2]
[322908494,1713493839712,-580.34761483,0.00016438,2]
[322908496,1713493839723,-1126.41,0.00016438,2]
[322908498,1713493839733,-500.0,0.00016438,2]
[322908500,1713493839745,-500.0,0.00016438,2]
[322908502,1713493839755,-1278.01,0.00016438,2]
[322908504,1713493839766,-898.36,0.00016438,2]
[322908506,1713493839779,-500.0,0.00016438,2]
[322908508,1713493839789,-500.0,0.00016438,2]
[322908510,1713493839800,-1499.2,0.00016438,2]
[322908513,1713493839824,-143.40187237,0.00016438,2]
[322908516,1713493839852,-356.59812763,0.00016438,2]
[322908518,1713493839862,-217.78187236,0.00016438,2]
[322908531,1713493839971,-282.21812764,0.00016438,2]